bitfinex-derivatives/quotes_SOLF0:USTF0_20240905
["timestamp","ask_amount","ask_price","bid_price","bid_amount"]
[1725496599584,17.8702225,133.91,133.9,0.05265758]
[1725496602386,10.33,133.91,133.85,1.4349]
[1725496602688,3.8277923,133.9,133.86,3.65969368]
[1725496603288,3.7347,133.89,133.87,0.0513679]
[1725496603488,10.38045806,133.92,133.87,0.0513679]
[1725496603792,3.83603893,133.92,133.88,3.71311169]
[1725496604586,3.734,133.91,133.88,3.71311169]
[1725496606683,3.78435806,133.92,133.88,3.7348]
[1725496606884,3.78435806,133.92,133.89,10.33]
[1725496607493,3.78435806,133.92,133.89,14.06188405]
[1725496608791,0.05045806,133.92,133.89,14.06188405]
[1725496610285,3.734,133.91,133.89,14.06188405]
[1725496612891,3.734,133.91,133.89,3.73188405]
[1725496613090,3.734,133.91,133.87,14.1162679]
[1725496613588,3.734,133.91,133.87,17.82275228]
[1725496614392,3.7343,133.9,133.87,17.82275228]
[1725496615691,3.7346,133.89,133.87,17.82275228]
[1725496617194,0.05045806,133.92,133.87,14.08785228]
[1725496617493,0.05045806,133.92,133.87,3.75785228]
[1725496618293,3.7346,133.89,133.87,3.75785228]
[1725496619989,3.7348,133.88,133.87,3.75785228]
[1725496620188,0.05421336,133.89,133.87,3.75785228]
[1725496620588,3.78891336,133.89,133.87,3.75785228]
[1725496622789,3.7348,133.88,133.87,3.75785228]
[1725496622996,3.7348,133.88,133.87,0.0513679]
[1725496628198,3.78891336,133.89,133.87,0.0513679]
[1725496628500,0.05421336,133.89,133.87,0.0513679]
[1725496629097,3.7348,133.88,133.87,0.0513679]
[1725496632107,3.78901336,133.89,133.87,0.0513679]
[1725496632301,0.05421336,133.89,133.87,10.3813679]
[1725496633702,3.78881336,133.89,133.87,0.0513679]
[1725496633905,0.05421336,133.89,133.87,0.0513679]
[1725496634106,10.38421336,133.89,133.87,0.0513679]
[1725496635104,14.0648,133.88,133.87,0.0513679]
[1725496637310,3.736,133.84,133.82,10.33]
[1725496637816,3.736,133.84,133.8,14.067]
[1725496638310,0.05087892,133.83,133.81,0.04780839]
[1725496638507,3.78717892,133.83,133.81,0.04780839]
[1725496639212,3.7365,133.82,133.81,0.04780839]
[1725496640713,7.39204824,133.82,133.81,0.04780839]
[1725496641918,3.7365,133.82,133.81,0.04780839]
[1725496642414,7.51836876,133.82,133.81,0.04780839]
[1725496642619,3.7365,133.82,133.81,0.04780839]
[1725496643316,3.78717892,133.83,133.81,0.04780839]
[1725496644917,3.7365,133.82,133.81,0.04780839]
[1725496648732,14.0665,133.82,133.81,0.04780839]
[1725496650625,3.7365,133.82,133.81,0.04780839]
[1725496651729,0.05087892,133.83,133.81,0.04780839]
[1725496653132,3.78727892,133.83,133.81,0.04780839]
[1725496654238,3.7365,133.82,133.81,0.04780839]
[1725496657040,0.05087892,133.83,133.81,0.04780839]
[1725496659329,0.05087892,133.83,133.81,10.37780839]
[1725496659529,0.05087892,133.83,133.81,14.11182947]
[1725496659735,0.05087892,133.83,133.82,1.3395]
[1725496660029,0.05087892,133.83,133.82,5.076]
[1725496660437,14.15933393,133.88,133.82,11.6695]
[1725496660840,14.15933393,133.88,133.82,12.9825]
[1725496661342,3.7354,133.86,133.83,3.7362]
[1725496661535,3.79259235,133.86,133.83,3.79307193]
[1725496661736,3.79259235,133.86,133.83,0.05687193]
[1725496662335,3.79259235,133.86,133.83,3.79307193]
[1725496664740,0.05719235,133.86,133.84,3.7359]
[1725496666544,3.735,133.88,133.85,3.7357]
[1725496666733,3.76662681,133.92,133.86,10.33]
[1725496666933,3.734,133.92,133.87,10.33]
[1725496667441,3.734,133.92,133.88,1.4304]
[1725496667635,3.734,133.92,133.89,0.05498643]
[1725496667636,0.05082704,133.91,133.89,0.05498643]
[1725496668133,0.05082704,133.91,133.9,10.33]
[1725496668340,3.7328,133.96,133.9,10.33]
[1725496668534,3.7328,133.96,133.92,10.33]
[1725496668736,10.33,133.98,133.92,14.0636]
[1725496669039,10.33,133.98,133.92,14.08130772]
[1725496669546,3.78095599,133.96,133.94,0.05638597]
[1725496670136,0.04815599,133.96,133.94,0.05638597]
[1725496670643,0.04815599,133.96,133.95,14.0629]
[1725496670944,0.04815599,133.96,133.95,10.33]
[1725496671150,2.3674,134.05,133.95,10.33]
[1725496671343,10.33,134.02,133.95,10.33]
[1725496671538,10.33,134.0,133.91,3.79546576]
[1725496671850,10.33,133.97,133.89,1.3684]
[1725496672148,3.7329,133.95,133.9,14.0641]
[1725496672343,0.05107141,133.94,133.92,0.04997248]
[1725496673745,3.7334,133.93,133.92,0.04997248]
[1725496674347,3.78427141,133.94,133.92,0.04997248]
[1725496678146,3.7334,133.93,133.92,0.04997248]
[1725496682447,29.5634,133.93,133.92,0.04997248]
[1725496685053,25.83,133.93,133.86,3.70013446]
[1725496685353,3.7349,133.88,133.84,25.83]
[1725496685548,25.83,133.93,133.84,25.83]
[1725496685757,25.83,133.93,133.84,29.5686075]
[1725496686155,0.04972289,133.9,133.87,0.05151098]
[1725496686345,3.75498691,133.9,133.87,0.05151098]
[1725496686550,0.04972289,133.9,133.87,0.05151098]
[1725496687059,3.7348,133.89,133.87,0.05151098]
[1725496687259,3.82634257,133.9,133.87,0.05151098]
[1725496687459,0.04972289,133.9,133.87,0.05151098]
[1725496688053,3.81775,133.9,133.87,0.05151098]
[1725496688254,0.04972289,133.9,133.87,0.05151098]
[1725496689159,3.78225931,133.9,133.87,0.05151098]
[1725496689963,3.7348,133.88,133.87,0.05151098]
[1725496695967,14.0648,133.88,133.87,0.05151098]
[1725496702670,3.7348,133.88,133.87,0.05151098]
[1725496709972,14.0648,133.88,133.87,0.05151098]
[1725496716574,51.65,133.88,133.78,1.3147]
[1725496716874,10.33,133.83,133.78,2.672]
[1725496717072,10.33,133.81,133.78,1.3573]
[1725496717268,3.79203407,133.8,133.78,1.3573]
[1725496717467,3.84419108,133.8,133.78,1.40747543]
[1725496717769,3.7373,133.79,133.78,1.40747543]
[1725496718069,7.58139108,133.8,133.78,1.40747543]
[1725496721471,3.78935701,133.8,133.78,1.40747543]
[1725496724376,3.7373,133.79,133.78,1.40747543]
[1725496724578,0.05215701,133.8,133.78,1.40747543]
[1725496724778,3.78935701,133.8,133.78,1.40747543]
[1725496727478,3.7373,133.79,133.78,1.40747543]
[1725496732673,3.78935701,133.8,133.78,1.40747543]
[1725496732877,0.05215701,133.8,133.78,11.73747543]
[1725496733176,10.33,133.85,133.79,10.33]
[1725496733374,3.7364,133.83,133.8,3.7369]
[1725496733581,3.7364,133.83,133.8,5.1693]
[1725496734185,3.79332961,133.83,133.8,5.22619668]
[1725496735482,3.7365,133.82,133.8,1.48929668]
[1725496738086,3.7368,133.81,133.8,0.05689668]
[1725496738589,14.0668,133.81,133.8,0.05689668]
[1725496742892,3.7368,133.81,133.8,0.05689668]
[1725496745187,3.7367,133.82,133.8,0.05689668]
[1725496745894,3.79322961,133.83,133.8,0.05689668]
[1725496746287,0.05692961,133.83,133.8,0.05689668]
[1725496746489,0.05692961,133.83,133.8,3.79389668]
[1725496747184,3.79312961,133.83,133.8,0.05689668]
[1725496750096,3.79312961,133.83,133.8,3.79389668]
[1725496752791,0.05692961,133.83,133.8,0.05689668]
[1725496752992,3.7366,133.82,133.8,0.05689668]
[1725496758712,3.79332961,133.83,133.8,3.79389668]
[1725496758913,3.79332961,133.83,133.8,14.12389668]
[1725496759905,0.05692961,133.83,133.81,3.7368]
[1725496760102,0.05692961,133.83,133.81,10.33]
[1725496760305,0.05692961,133.83,133.81,11.7608]
[1725496761101,0.05692961,133.83,133.82,3.7365]
[1725496761602,0.05692961,133.83,133.8,0.05689668]
[1725496763411,3.79312961,133.83,133.8,3.79379668]
[1725496766014,0.05692961,133.83,133.81,3.7367]
[1725496766706,0.05692961,133.83,133.82,3.7365]
[1725496770714,10.38692961,133.83,133.8,0.05689668]
[1725496770912,10.33,133.81,133.8,0.05689668]
[1725496772315,14.0668,133.81,133.8,0.05689668]
[1725496781620,3.7368,133.81,133.8,0.05689668]
[1725496782223,14.0668,133.81,133.8,0.05689668]
[1725496797028,3.7368,133.81,133.8,0.05689668]
[1725496797229,14.0668,133.81,133.8,0.05689668]
[1725496801034,3.7368,133.81,133.8,0.05689668]
[1725496801429,3.7366,133.82,133.8,0.05689668]
[1725496801731,0.05692961,133.83,133.8,0.05689668]
[1725496802035,3.79332961,133.83,133.8,0.05689668]
[1725496803637,3.7365,133.82,133.8,0.05689668]
[1725496806736,14.0665,133.82,133.8,0.05689668]
[1725496806934,3.7368,133.81,133.8,0.05689668]
[1725496820656,14.0668,133.81,133.8,0.05689668]
[1725496824151,3.7382,133.76,133.75,1.3605]
[1725496824352,3.7382,133.76,133.73,1.351]
[1725496824353,10.33,133.76,133.73,1.351]
[1725496824553,10.33,133.74,133.73,1.351]
[1725496825257,17.89095379,133.74,133.73,1.351]
[1725496826159,3.7387,133.74,133.73,1.351]
[1725496826354,3.739,133.73,133.72,0.04920979]
[1725496826555,17.76151476,133.73,133.72,0.04920979]
[1725496828761,14.0699,133.7,133.67,1.3081]
[1725496829457,10.33,133.69,133.67,1.3081]
[1725496829655,10.38637409,133.69,133.67,1.36120185]
[1725496829958,3.7404,133.68,133.67,1.36120185]
[1725496832259,0.05637409,133.69,133.67,1.36120185]
[1725496832656,10.33,133.73,133.67,1.36120185]
[1725496833361,3.7396,133.71,133.67,1.36120185]
[1725496833559,0.04859911,133.7,133.67,1.36120185]
[1725496835758,3.7396,133.71,133.67,1.36120185]
[1725496836561,3.7396,133.71,133.67,5.10190185]
[1725496836765,82.68042443,133.75,133.68,10.33]
[1725496837266,3.7393,133.73,133.68,14.0702]
[1725496837761,0.05351949,133.72,133.69,0.04717158]
[1725496838070,3.7393,133.73,133.69,0.04717158]
[1725496839265,0.05597422,133.72,133.69,0.04717158]
[1725496839663,0.05597422,133.72,133.69,3.78727158]
[1725496839859,3.7393,133.73,133.69,0.04717158]
[1725496840054,3.7393,133.73,133.69,10.37717158]
[1725496840459,3.7383,133.76,133.72,3.7392]
[1725496840660,3.7383,133.76,133.72,8.88201552]
[1725496840862,3.7383,133.76,133.73,0.04883487]
[1725496841062,0.04495514,133.75,133.73,0.04883487]
[1725496843370,14.11345514,133.75,133.73,0.04883487]
[1725496843568,10.37495514,133.75,133.73,0.04883487]
[1725496844166,3.7387,133.74,133.73,0.04883487]
[1725496844969,14.0687,133.74,133.73,0.04883487]
[1725496845771,17.87507865,133.74,133.73,0.04883487]
[1725496851573,7.54507865,133.74,133.73,0.04883487]
[1725496855983,17.87507865,133.74,133.73,0.04883487]
[1725496857076,14.0687,133.74,133.73,0.04883487]
[1725496857280,3.7397,133.71,133.67,1.4351]
[1725496857478,14.0697,133.71,133.67,5.20651457]
[1725496858284,0.05130459,133.7,133.68,0.0552407]
[1725496858584,3.79120459,133.7,133.68,0.0552407]
[1725496861988,0.05130459,133.7,133.68,0.0552407]
[1725496862583,0.05130459,133.7,133.68,3.7956407]
[1725496862885,1.5153,133.77,133.68,10.3852407]
[1725496862886,3.72886428,133.74,133.68,10.3852407]
[1725496863086,3.7397,133.71,133.68,1.3292]
[1725496863779,1.4146,133.77,133.69,10.33]
[1725496863980,10.33,133.75,133.69,10.33]
[1725496864284,0.04248542,133.74,133.72,0.04831387]
[1725496864882,3.78138542,133.74,133.72,0.04831387]
[1725496866483,0.04248542,133.74,133.72,0.04831387]
[1725496868385,10.33,133.73,133.72,0.04831387]
[1725496869183,14.069,133.73,133.72,0.04831387]
[1725496869589,10.33,133.73,133.67,1.4351]
[1725496869789,14.07,133.7,133.67,1.4351]
[1725496870181,10.33,133.7,133.65,98.59476056]
[1725496870388,3.7403,133.69,133.65,94.85366056]
[1725496870587,0.0480202,133.68,133.66,0.04941278]
[1725496872182,3.7885202,133.68,133.66,0.04941278]
[1725496873297,14.0707,133.67,133.66,0.04941278]
[1725496881602,3.7407,133.67,133.66,0.04941278]
[1725496882700,10.3780202,133.68,133.66,0.04941278]
[1725496882905,0.0480202,133.68,133.66,0.04941278]
[1725496884206,0.0480202,133.68,133.66,3.79031278]
[1725496889004,0.0480202,133.68,133.66,0.04941278]
[1725496890303,3.7884202,133.68,133.66,0.04941278]
[1725496898817,3.7407,133.67,133.66,0.04941278]
[1725496899811,14.0707,133.67,133.66,0.04941278]
[1725496900215,17.84015802,133.67,133.66,0.04941278]
[1725496906722,3.7414,133.65,133.61,3.76197448]
[1725496906922,14.0714,133.65,133.61,3.76197448]
[1725496907716,14.0714,133.65,133.62,0.05678948]
[1725496907922,0.04938715,133.64,133.62,0.05678948]
[1725496908721,3.79098715,133.64,133.62,0.05678948]
[1725496910611,3.7418,133.63,133.62,0.05678948]
[1725496913924,14.0718,133.63,133.62,0.05678948]
[1725496914125,17.90517076,133.63,133.62,0.05678948]
[1725496921635,3.7426,133.61,133.57,2.8192]
[1725496921836,14.13475267,133.6,133.57,6.47869595]
[1725496922036,10.33,133.6,133.57,6.47869595]
[1725496922237,10.33,133.6,133.57,10.22209595]
[1725496922638,0.05239465,133.6,133.57,10.27589246]
[1725496922840,3.79509465,133.6,133.57,6.53249246]
[1725496923345,3.79509465,133.6,133.57,5.10469246]
[1725496923943,3.7429,133.59,133.57,1.44519651]
[1725496927640,14.08345027,133.6,133.57,0.05379651]
[1725496927641,3.7432,133.58,133.57,0.05379651]
[1725496932142,3.75345027,133.6,133.57,0.05379651]
[1725496932143,0.05239465,133.6,133.57,0.05379651]
[1725496932543,0.05239465,133.6,133.57,2.86069651]
[1725496932743,0.05239465,133.6,133.57,10.42494903]
[1725496932944,0.05239465,133.6,133.57,6.68164903]
[1725496933948,0.05239465,133.6,133.58,3.7432]
[1725496935348,0.05239465,133.6,133.57,10.42494903]
[1725496936946,69.73061496,133.66,133.57,17.01164903]
[1725496937249,10.33,133.65,133.58,10.33]
[1725496937660,3.7417,133.64,133.6,3.7425]
[1725496938048,0.05030568,133.63,133.61,0.0565852]
[1725496940446,14.12220568,133.63,133.61,0.0565852]
[1725496948055,3.7421,133.62,133.61,0.0565852]
[1725496950755,14.0721,133.62,133.61,0.0565852]
[1725496951151,17.88488538,133.62,133.61,0.0565852]
[1725496956263,3.7434,133.58,133.54,2.745]
[1725496956465,7.41243028,133.58,133.55,3.66303942]
[1725496957165,7.45991815,133.58,133.55,3.71213622]
[1725496957566,7.45991815,133.58,133.55,0.0490968]
[1725496958065,0.04748787,133.58,133.55,0.0490968]
[1725496958566,0.04748787,133.58,133.56,3.7437]
[1725496958968,0.04748787,133.58,133.55,10.3790968]
[1725496959167,3.83115806,133.62,133.57,10.33]
[1725496959368,10.33,133.63,133.57,10.33]
[1725496959559,3.71069182,133.62,133.57,10.33]
[1725496959872,3.7426,133.61,133.57,14.0733]
[1725496960166,0.04721385,133.6,133.58,0.05255169]
[1725496962161,3.78991385,133.6,133.58,0.05255169]
[1725496967368,10.33,133.65,133.58,10.38255169]
[1725496967570,10.33,133.65,133.59,1.3347]
[1725496967864,14.04808311,133.65,133.59,1.3347]
[1725496968069,10.33,133.64,133.59,1.3347]
[1725496968372,3.7422,133.62,133.59,5.0775]
[1725496968672,3.7422,133.62,133.59,6.4369]
[1725496971065,3.7424,133.61,133.59,2.6941]
[1725496972472,3.7422,133.62,133.59,6.437]
[1725496974272,10.33,133.6,133.58,0.05255169]
[1725496975768,10.38723136,133.63,133.58,0.05255169]
[1725496976563,3.7425,133.61,133.58,0.05255169]
[1725496976765,10.38723136,133.63,133.58,0.05255169]
[1725496977172,0.05723136,133.63,133.58,0.05255169]
[1725496977367,3.7423,133.62,133.58,3.79555169]
[1725496983082,3.7424,133.61,133.58,0.05255169]
[1725496983782,3.7427,133.6,133.58,0.05255169]
[1725496984085,10.38723136,133.63,133.58,0.05255169]
[1725496984380,3.7429,133.6,133.58,0.05255169]
[1725496984585,10.33,133.61,133.58,0.05255169]
[1725496986284,3.7429,133.59,133.58,0.05255169]
[1725496991485,0.04870241,133.6,133.58,0.05255169]
[1725496991788,3.79140241,133.6,133.58,0.05255169]
[1725496992691,0.04870241,133.6,133.59,3.7429]
[1725496992981,3.71808311,133.65,133.59,14.0729]
[1725496993386,10.33,133.64,133.58,3.79575169]
[1725496993889,3.79599264,133.62,133.58,3.79575169]
[1725496996083,3.79599264,133.62,133.59,3.7428]
[1725497002189,0.05369264,133.62,133.6,3.7426]
[1725497002783,3.79579264,133.62,133.6,3.7426]
[1725497003684,3.79579264,133.62,133.59,3.7428]
[1725497011394,3.79579264,133.62,133.6,3.7426]
[1725497014398,0.05369264,133.62,133.6,3.7426]
[1725497018095,3.79579264,133.62,133.59,3.7428]
[1725497018601,3.79579264,133.62,133.58,10.38255169]
[1725497018602,3.79579264,133.62,133.6,3.7426]
[1725497018802,0.05369264,133.62,133.6,3.7426]
[1725497021915,0.05369264,133.62,133.61,3.7424]
[1725497023618,0.05369264,133.62,133.58,10.38255169]
[1725497023619,0.05369264,133.62,133.6,3.7425]
[1725497031223,3.79589264,133.62,133.59,3.7428]
[1725497033723,3.7424,133.61,133.58,14.12565169]
[1725497040434,3.79599264,133.62,133.59,3.7429]
[1725497042434,3.7424,133.61,133.59,3.7429]
[1725497045335,10.33,133.6,133.58,0.05255169]
[1725497046034,3.7429,133.59,133.58,0.05255169]
[1725497046936,3.7426,133.61,133.58,0.05255169]
[1725497047139,0.05369264,133.62,133.58,0.05255169]
[1725497047435,3.7424,133.61,133.58,0.05255169]
[1725497048040,3.7428,133.6,133.58,0.05255169]
[1725497048236,10.38369264,133.62,133.58,0.05255169]
[1725497048635,3.7429,133.59,133.58,0.05255169]
[1725497049741,14.0729,133.59,133.58,0.05255169]
[1725497052730,3.7429,133.59,133.58,0.05255169]
[1725497054341,3.7424,133.61,133.58,0.05255169]
[1725497054543,0.05369264,133.62,133.59,10.33]
[1725497054942,3.7425,133.61,133.59,10.33]
[1725497055543,3.7425,133.61,133.58,0.05255169]
[1725497057235,3.79589264,133.62,133.59,10.33]
[1725497059843,3.79589264,133.62,133.59,14.0729]
[1725497060144,3.79589264,133.62,133.59,15.4419]
[1725497062038,3.79589264,133.62,133.59,11.699]
[1725497063150,3.79589264,133.62,133.59,15.4419]
[1725497065754,3.7424,133.61,133.59,11.699]
[1725497073071,0.05369264,133.62,133.59,1.369]
[1725497073672,3.7424,133.61,133.59,1.369]
[1725497074574,3.7424,133.61,133.59,5.1119]
[1725497075277,3.79589264,133.62,133.59,5.1119]
[1725497075673,0.05369264,133.62,133.6,3.79809851]
[1725497075979,0.05369264,133.62,133.6,6.53999851]
[1725497076473,0.05369264,133.62,133.6,6.4844]
[1725497079679,0.05369264,133.62,133.6,10.30944865]
[1725497089080,0.05369264,133.62,133.61,10.33]
[1725497101798,58.45929738,133.73,133.6,2.7419]
[1725497102092,15.50066233,133.73,133.67,10.33]
[1725497102289,10.33,133.71,133.65,10.33]
[1725497102689,3.7406,133.68,133.67,0.0479042]
[1725497103196,5.17066233,133.73,133.67,0.0479042]
[1725497103392,15.50066233,133.73,133.67,0.0479042]
[1725497103887,3.7402,133.69,133.67,0.0479042]
[1725497104089,10.33,133.71,133.67,0.0479042]
[1725497104287,5.17066233,133.73,133.67,0.0479042]
[1725497104288,3.7404,133.68,133.67,0.0479042]
[1725497104502,10.33,133.68,133.61,14.14631874]
[1725497104887,3.7414,133.65,133.61,17.88861874]
[1725497105388,10.33,133.68,133.62,10.33]
[1725497105596,0.05239608,133.64,133.62,14.12098042]
[1725497106093,0.05239608,133.64,133.62,17.86284353]
[1725497107491,0.05239608,133.64,133.63,14.0718]
[1725497107694,5.17066233,133.73,133.63,10.33]
[1725497107695,10.33,133.71,133.63,10.33]
[1725497107994,3.7404,133.69,133.66,10.33]
[1725497108592,3.7404,133.69,133.66,10.38552648]
[1725497111200,10.33,133.71,133.66,0.05552648]
[1725497111501,10.33,133.7,133.66,0.05552648]
[1725497111701,3.7407,133.67,133.66,0.05552648]
[1725497116110,3.7421,133.63,133.6,2.7419]
[1725497116299,3.7421,133.63,133.6,16.88158417]
[1725497116499,3.7421,133.63,133.6,13.0719]
[1725497117101,3.79414609,133.63,133.6,16.93618773]
[1725497117695,3.79414609,133.63,133.6,10.37991648]
[1725497118005,3.7421,133.62,133.6,10.37991648]
[1725497118305,0.05204609,133.63,133.6,10.37991648]
[1725497118505,3.79404609,133.63,133.6,10.37991648]
[1725497120096,0.05204609,133.63,133.61,10.33]
[1725497120599,0.05204609,133.63,133.62,10.33]
[1725497120806,0.05204609,133.63,133.62,14.0721]
[1725497124611,3.7411,133.66,133.62,14.0721]
[1725497124818,3.7411,133.66,133.64,10.33]
[1725497125711,3.7411,133.66,133.64,10.38020837]
[1725497128010,3.7413,133.65,133.64,10.38020837]
[1725497128514,10.33,133.7,133.64,10.38020837]
[1725497128915,86.23166727,133.72,133.65,10.33]
[1725497129229,86.23166727,133.72,133.67,0.05351824]
[1725497129516,3.7406,133.68,133.67,0.05351824]
[1725497150830,3.742,133.63,133.6,4.166]
[1725497151024,3.742,133.63,133.6,14.496]
[1725497151430,3.66235126,133.65,133.6,14.496]
[1725497151832,0.05005694,133.64,133.61,0.0502672]
[1725497152437,0.05005694,133.64,133.63,10.33]
[1725497153933,75.90166727,133.72,133.63,10.33]
[1725497154128,75.90166727,133.72,133.65,10.33]
[1725497154333,10.33,133.71,133.65,10.33]
[1725497154928,10.33,133.7,133.67,0.05452389]
[1725497156038,3.7404,133.68,133.67,0.05452389]
[1725497158135,14.0704,133.68,133.67,0.05452389]
[1725497158637,3.7422,133.62,133.6,4.166]
[1725497158840,3.7422,133.62,133.6,14.496]
[1725497159840,3.79702552,133.62,133.6,14.54815753]
[1725497161544,0.05482552,133.62,133.61,10.33]
[1725497162140,10.33,133.69,133.61,10.33]
[1725497162345,3.7416,133.64,133.63,10.33]
[1725497163242,75.90166727,133.72,133.63,10.33]
[1725497163433,75.90166727,133.72,133.66,0.05299765]
[1725497163434,10.33,133.7,133.66,0.05299765]
[1725497165347,3.7407,133.67,133.66,0.05299765]
[1725497172554,74.53696727,133.72,133.66,10.38299765]
[1725497172860,3.82476233,133.73,133.68,10.33]
[1725497173155,3.7398,133.71,133.69,0.04784071]
[1725497174152,3.7394,133.72,133.7,10.33]
[1725497174355,3.7394,133.72,133.7,10.37938575]
[1725497175551,3.7396,133.71,133.7,0.04938575]
[1725497176252,3.7394,133.72,133.7,0.04938575]
[1725497179454,3.7396,133.71,133.7,0.04938575]
[1725497179648,14.0696,133.71,133.7,0.04938575]
[1725497179849,14.11918713,133.71,133.65,10.33]
[1725497180452,3.78918713,133.71,133.65,10.33]
[1725497180655,10.33,133.71,133.65,10.33]
[1725497180960,0.05269233,133.69,133.67,0.05540065]
[1725497181459,3.7406,133.68,133.67,0.05540065]
[1725497183057,3.7406,133.68,133.67,10.38540065]
[1725497183253,3.79289233,133.69,133.67,10.38540065]
[1725497183454,3.79289233,133.69,133.68,10.33]
[1725497185959,3.7404,133.68,133.67,10.38540065]
[1725497188063,3.7404,133.68,133.67,0.05540065]
[1725497190162,3.7404,133.68,133.67,10.38540065]
[1725497200062,3.79299233,133.69,133.67,10.38540065]
[1725497200367,3.79299233,133.69,133.68,10.33]
[1725497205770,0.05269233,133.69,133.63,1.3641]
[1725497205972,10.33,133.68,133.6,1.429]
[1725497206270,3.7424,133.61,133.57,2.8521]
[1725497206473,3.7424,133.61,133.6,10.33]
[1725497207073,3.79521871,133.62,133.6,10.33]
[1725497211878,3.7424,133.61,133.6,10.33]
[1725497214579,0.05301871,133.62,133.59,0.04964784]
[1725497215377,10.38301871,133.62,133.59,0.04964784]
[1725497215679,10.38301871,133.62,133.5,2.7368]
[1725497215680,10.33,133.6,133.5,2.7368]
[1725497215883,10.33,133.6,133.54,10.33]
[1725497216378,3.7441,133.55,133.5,6.4821]
[1725497216684,3.7441,133.55,133.53,10.33]
[1725497216873,3.79363507,133.55,133.53,10.37767452]
[1725497220380,3.7443,133.54,133.53,10.37767452]
[1725497220576,3.7443,133.54,133.53,0.04767452]
[1725497220978,3.7456,133.5,133.47,1.4308]
[1725497221180,3.7456,133.5,133.48,10.33]
[1725497222082,3.79691246,133.5,133.48,10.38664922]
[1725497222679,3.79691246,133.5,133.48,0.05664922]
[1725497223083,3.79691246,133.5,133.49,10.33]
[1725497224387,3.7457,133.49,133.48,0.05664922]
[1725497224579,3.7457,133.49,133.48,10.38664922]
[1725497226091,3.79681246,133.5,133.48,10.38664922]
[1725497230699,3.7457,133.49,133.48,10.38664922]
[1725497231798,0.05131246,133.5,133.48,10.38664922]
[1725497231799,3.79691246,133.5,133.48,10.38664922]
[1725497234300,0.05131246,133.5,133.49,10.33]
[1725497234599,3.7452,133.51,133.49,11.7665]
[1725497235398,0.05729361,133.51,133.49,11.7665]
[1725497235593,14.142823,133.58,133.49,13.1731]
[1725497235804,10.33,133.6,133.53,10.33]
[1725497236002,3.7439,133.56,133.53,10.33]
[1725497236403,1.3882,133.61,133.55,10.33]
[1725497236611,11.7182,133.61,133.55,10.33]
[1725497236904,0.05534726,133.59,133.57,0.05604531]
[1725497239411,3.79834726,133.59,133.57,0.05604531]
[1725497239713,3.79834726,133.59,133.57,10.38604531]
[1725497240413,1.3375,133.66,133.58,10.33]
[1725497240609,14.09515945,133.65,133.6,10.33]
[1725497240815,10.33,133.65,133.6,10.33]
[1725497241008,3.742,133.63,133.6,10.33]
[1725497241408,3.742,133.63,133.61,10.33]
[1725497241711,3.78779478,133.63,133.61,10.33]
[1725497242614,3.7421,133.62,133.6,0.04874689]
[1725497243308,0.04579478,133.63,133.6,0.04874689]
[1725497243309,3.7424,133.61,133.6,0.04874689]
[1725497244618,3.7422,133.62,133.6,0.04874689]
[1725497247314,3.7424,133.61,133.6,0.04874689]
[1725497254417,0.04579478,133.63,133.6,0.04874689]
[1725497254609,3.78779478,133.63,133.6,0.04874689]
[1725497256924,0.04579478,133.63,133.6,0.04874689]
[1725497257321,0.04579478,133.63,133.6,1.36894689]
[1725497257526,0.04579478,133.63,133.6,5.11134689]
[1725497257924,0.04579478,133.63,133.6,1.36894689]
[1725497263228,0.04579478,133.63,133.6,5.11154689]
[1725497266030,0.04579478,133.63,133.6,6.54484689]
[1725497267632,0.04579478,133.63,133.61,27.2538]
[1725497269929,0.04579478,133.63,133.62,10.34]
[1725497271533,0.04579478,133.63,133.61,11.7238]
[1725497274325,0.04579478,133.63,133.62,10.34]
[1725497276032,10.34,133.69,133.62,14.0821]
[1725497276033,3.7413,133.65,133.62,14.0821]
[1725497276233,3.7413,133.65,133.64,10.34]
[1725497281938,3.7413,133.65,133.63,0.05179573]
[1725497282538,3.7415,133.64,133.63,0.05179573]
[1725497283739,3.743,133.59,133.57,10.34]
[1725497284135,10.34,133.63,133.57,10.34]